bitfinex/quotes_ETHUSD_20230404
["timestamp","ask_amount","ask_price","bid_price","bid_amount"]
[1680648465672,2.549565,1865.7,1865.5,0.05]
[1680648466783,2.281575,1865.7,1865.5,0.05]
[1680648467223,2.549565,1865.7,1865.5,0.05]
[1680648467623,2.281575,1865.7,1865.5,0.05]
[1680648467825,2.549565,1865.7,1865.5,0.05]
[1680648469912,0.2549565,1865.6,1865.5,0.05]
[1680648472200,1.787575,1865.7,1865.5,0.05]
[1680648472438,1.137575,1865.7,1865.5,0.05]
[1680648474138,10.0718,1865.8,1865.5,0.05]
[1680648474370,10.33978,1865.8,1865.5,0.05]
[1680648475328,13.10580218,1865.8,1865.5,0.05]
[1680648475528,12.83782218,1865.8,1865.5,0.05]
[1680648475771,13.11480218,1865.8,1865.5,0.05]
[1680648475972,1.31148022,1865.7,1865.5,0.05]
[1680648486538,1.31148022,1865.7,1865.5,0.04703192]
[1680648490043,10.0808,1865.8,1865.5,0.04703192]
[1680648490245,10.0718,1865.8,1865.5,0.04703192]
[1680648491331,10.0808,1865.8,1865.5,0.04703192]
[1680648491542,10.0718,1865.8,1865.5,0.04703192]
[1680648492136,9.4248,1865.8,1865.5,0.04703192]
[1680648492440,0.003,1865.8,1865.5,0.04703192]
[1680648492639,3.91696,1865.9,1865.5,0.04703192]
[1680648493046,3.92596,1865.9,1865.5,0.04703192]
[1680648494271,5.89693582,1865.9,1865.5,0.04703192]
[1680648494424,5.89993582,1865.9,1865.5,0.04703192]
[1680648497920,5.63197582,1865.9,1865.5,0.04703192]
[1680648498167,5.89993582,1865.9,1865.5,0.04703192]
[1680648498460,5.63197582,1865.9,1865.5,0.04703192]
[1680648498672,5.63197582,1865.9,1865.5,0.28825192]
[1680648498673,0.012,1865.9,1865.5,0.28825192]
[1680648498826,5.17978153,1866.2,1865.5,0.77069192]
[1680648499024,0.012,1866.2,1865.6,0.47706919]
[1680648499256,0.009,1866.2,1865.7,0.88718]
[1680648499729,0.009,1866.2,1865.7,6.09778]
[1680648500172,0.009,1866.2,1865.7,6.58017]
[1680648500344,20.013998,1866.3,1865.8,0.658017]
[1680648500565,20.013998,1866.3,1865.9,0.24116]
[1680648500965,20.013998,1866.3,1865.8,0.899187]
[1680648501660,20.013998,1866.3,1865.9,0.649]
[1680648501859,20.013998,1866.3,1866.0,0.72346]
[1680648502203,20.013998,1866.3,1866.1,0.072346]
[1680648502505,20.013998,1866.3,1866.1,0.313476]
[1680648503272,20.004998,1866.3,1866.1,0.81771415]
[1680648506252,19.954998,1866.3,1866.1,0.81971415]
[1680648506559,19.954998,1866.3,1866.2,0.32310142]
[1680648507506,19.963998,1866.3,1866.2,0.32310142]
[1680648507859,19.954998,1866.3,1866.2,0.32310142]
[1680648516288,19.954998,1866.3,1866.0,0.24715]
[1680648516484,19.954998,1866.3,1866.0,0.24115]
[1680648518791,19.954998,1866.3,1866.0,1.68809]
[1680648519946,19.954998,1866.3,1866.0,1.71004933]
[1680648520449,19.963998,1866.3,1866.0,1.71004933]
[1680648520742,19.954998,1866.3,1866.1,0.17100493]
[1680648520913,19.954998,1866.3,1866.2,0.72339]
[1680648521950,19.954998,1866.3,1866.2,0.02195697]
[1680648523563,19.954998,1866.3,1866.0,0.72945]
[1680648523725,19.954998,1866.3,1866.0,0.24115]
[1680648524062,19.954998,1866.3,1865.9,0.24715]
[1680648524365,19.954998,1866.3,1865.8,0.006]
[1680648524366,0.646,1866.1,1865.8,0.006]
[1680648524524,0.646,1866.1,1865.6,0.2452]
[1680648525340,0.646,1866.1,1865.6,0.2432]
[1680648525737,0.646,1866.1,1865.6,0.2412]
[1680648525940,0.646,1866.1,1865.6,1.28697719]
[1680648527283,5.44313,1866.2,1865.6,1.28697719]
[1680648527284,5.94613,1866.2,1865.6,1.28697719]
[1680648530770,1.149,1866.0,1865.5,0.31821713]
[1680648530981,1.41695,1866.0,1865.5,0.06899713]
[1680648531136,1.41695,1866.0,1865.5,0.07299713]
[1680648531337,1.41695,1866.0,1865.5,0.07099713]
[1680648531545,1.41695,1866.0,1865.5,0.59911884]
[1680648531752,1.41695,1866.0,1865.5,0.60111884]
[1680648531930,1.41461913,1866.0,1865.5,0.60111884]
[1680648532134,1.149,1865.9,1865.5,0.06899713]
[1680648532334,1.41697,1865.9,1865.5,0.06899713]
[1680648532637,1.149,1865.9,1865.5,0.06899713]
[1680648533868,1.41696,1865.9,1865.5,0.06899713]
[1680648535279,1.149,1865.9,1865.5,0.06899713]
[1680648535957,1.149,1865.9,1865.5,0.31020713]
[1680648538389,1.149,1865.9,1865.5,0.39007384]
[1680648540271,1.149,1865.9,1865.5,0.31020713]
[1680648542686,1.149,1866.0,1865.5,0.31020713]
[1680648542880,1.149,1866.0,1865.5,0.06899713]
[1680648542881,1.147,1865.8,1865.5,0.06899713]
[1680648543220,4.6205,1865.9,1865.5,0.79265713]
[1680648543428,4.6205,1865.9,1865.6,0.07926571]
[1680648543584,4.6205,1865.9,1865.6,0.32045571]
[1680648544299,1.152,1866.0,1865.6,0.80286571]
[1680648544511,10.0499,1866.1,1865.6,0.80286571]
[1680648551676,0.003,1866.1,1865.7,8.41398503]
[1680648551816,19.954998,1866.3,1865.8,8.1556585]
[1680648552154,19.954998,1866.3,1865.9,8.39202218]
[1680648552360,19.960998,1866.3,1866.0,0.72345]
[1680648552560,19.963998,1866.3,1866.1,0.072345]
[1680648552719,19.963998,1866.3,1866.2,0.24113]
[1680648553276,19.954998,1866.3,1866.2,0.24113]
[1680648553559,19.95198408,1866.3,1866.2,0.72339]
[1680648553726,19.95198408,1866.3,1866.2,0.8029635]
[1680648560237,19.95198408,1866.3,1866.2,3.56898568]
[1680648560431,19.95198408,1866.3,1866.2,3.08672568]
[1680648560623,19.95198408,1866.3,1866.2,3.08872568]
[1680648561829,19.95198408,1866.3,1866.2,3.09072568]
[1680648562973,19.95198408,1866.3,1866.2,3.08672568]
[1680648563133,19.95198408,1866.3,1866.2,3.09072568]
[1680648564545,19.95198408,1866.3,1866.2,3.08872568]
[1680648566035,19.95198408,1866.3,1866.2,3.09072568]
[1680648566668,19.95198408,1866.3,1866.2,2.84959568]
[1680648566972,19.95198408,1866.3,1866.2,2.84759568]
[1680648567335,19.95198408,1866.3,1866.2,3.08872568]
[1680648567562,19.95198408,1866.3,1866.2,3.09072568]
[1680648568165,19.95198408,1866.3,1866.2,0.0835735]
[1680648568339,19.95198408,1866.3,1866.1,0.26309815]
[1680648571180,19.95198408,1866.3,1866.0,0.006]
[1680648571354,19.95198408,1866.3,1866.0,0.24114]
[1680648572863,21.10098408,1866.3,1865.9,0.006]
[1680648573086,2.11009841,1866.2,1865.8,0.24718]
[1680648573691,2.11009841,1866.2,1865.8,0.24318]
[1680648574054,2.11009841,1866.2,1865.8,0.24118]
[1680648575494,21.10098408,1866.3,1865.8,0.24118]
[1680648575696,1.149,1866.1,1865.8,0.24118]
[1680648575940,1.149,1866.1,1865.7,0.72356]
[1680648576122,1.147,1866.0,1865.8,0.24118]
[1680648582115,1.149,1866.1,1865.8,0.24118]
[1680648591962,1.149,1866.1,1865.8,0.313536]
[1680648592151,0.644,1866.0,1865.8,0.313536]
[1680648592859,0.644,1866.0,1865.8,0.795896]
[1680648594823,0.644,1866.0,1865.6,0.006]
[1680648595022,0.644,1866.0,1865.6,0.2412]
[1680648595425,0.648,1865.8,1865.6,0.2412]
[1680648597335,0.648,1865.8,1865.6,0.72361]
[1680648597531,0.644,1866.0,1865.6,0.72361]
[1680648597765,0.644,1866.0,1865.6,0.80127419]
[1680648603647,0.644,1866.0,1865.6,3.56729637]
[1680648604041,0.644,1866.0,1865.6,9.19929637]
[1680648604668,0.644,1866.0,1865.6,9.19329637]
[1680648604884,0.644,1866.0,1865.6,9.19929637]
[1680648605082,0.644,1866.0,1865.8,0.24118]
[1680648605270,0.648,1866.1,1865.8,0.24118]
[1680648606902,15.31960748,1866.2,1865.8,0.24118]
[1680648608292,5.33370748,1866.2,1865.8,0.72354]
[1680648608495,0.003,1866.2,1865.9,0.09431451]
[1680648608651,19.95798408,1866.3,1865.9,0.09431451]
[1680648608652,19.95198408,1866.3,1866.2,0.00313292]
[1680648608991,19.95198408,1866.3,1866.2,0.24426292]
[1680648613781,19.94945733,1866.3,1866.2,0.24426292]
[1680648614087,19.94945733,1866.3,1866.2,0.31911303]
[1680648616590,19.94945733,1866.3,1866.2,0.80137303]
[1680648619741,19.94945733,1866.3,1866.2,3.56739521]
[1680648619929,19.94945733,1866.3,1866.2,3.57339521]
[1680648623725,19.94945733,1866.3,1866.2,0.08398303]
[1680648623917,19.94945733,1866.3,1866.2,0.00313292]
[1680648624458,19.94945733,1866.3,1866.2,0.24426292]
[1680648625516,19.94945733,1866.3,1866.2,0.00313292]
[1680648625718,19.94945733,1866.3,1866.2,0.24426292]
[1680648626645,19.94945733,1866.3,1866.2,0.00313292]
[1680648627563,19.95845733,1866.3,1866.1,0.24113]
[1680648627761,19.95845733,1866.3,1866.0,0.24114]
[1680648629555,19.95845733,1866.3,1865.9,0.24116]
[1680648629762,19.95845733,1866.3,1865.9,4.51629435]
[1680648631966,19.95845733,1866.3,1866.0,8.41398151]
[1680648632265,19.95845733,1866.3,1866.1,0.24114]
[1680648632423,19.95845733,1866.3,1866.1,3.00716218]
[1680648633054,19.95845733,1866.3,1866.1,3.48944218]
[1680648633254,19.95845733,1866.3,1866.2,0.59007422]
[1680648633625,19.95845733,1866.3,1866.2,0.24113]
[1680648634150,19.95845733,1866.3,1866.2,0.72339]
[1680648635577,19.95845733,1866.3,1866.2,9.11541218]
[1680648639145,19.95845733,1866.3,1866.2,9.13736915]
[1680648642798,19.95845733,1866.3,1866.2,12.78536915]
[1680648642969,19.95845733,1866.3,1866.2,14.7000865]
[1680648643171,19.94945733,1866.3,1866.2,14.7020865]
[1680648643343,19.94945733,1866.3,1866.2,14.7040865]
[1680648644865,19.94945733,1866.3,1866.2,14.0560865]
[1680648645899,19.95845733,1866.3,1866.2,14.0500865]
[1680648646801,19.94945733,1866.3,1866.2,14.0560865]
[1680648647300,19.94945733,1866.3,1866.2,0.72339]
[1680648647959,19.94575515,1866.3,1866.2,0.72339]
[1680648648689,19.95475515,1866.3,1866.2,0.72339]
[1680648661848,19.95475515,1866.3,1866.2,0.72339]
[1680648672064,20.59147243,1866.3,1866.2,0.72339]
[1680648677853,20.60047243,1866.3,1866.2,0.72339]
[1680648678280,20.59147243,1866.3,1866.2,0.72339]
[1680648681685,19.94347243,1866.3,1866.2,0.89437882]
[1680648681882,19.94347243,1866.3,1866.2,9.286401]
[1680648682090,19.94347243,1866.3,1866.2,9.292401]
[1680648685340,19.94647243,1866.3,1866.2,9.292401]
[1680648685545,19.94347243,1866.3,1866.2,9.292401]
[1680648688585,19.95247243,1866.3,1866.2,9.286401]
[1680648688825,19.94347243,1866.3,1866.2,9.292401]
[1680648693482,19.94347243,1866.3,1866.2,3.666401]
[1680648693686,19.94347243,1866.3,1866.2,3.662401]
[1680648695129,19.94347243,1866.3,1866.2,0.72739]
[1680648695329,19.94347243,1866.3,1866.2,0.72339]
[1680648695847,19.95247243,1866.3,1866.2,0.72339]
[1680648696714,19.94881607,1866.3,1866.2,0.72339]
[1680648704240,19.94881607,1866.3,1866.2,3.48941218]
[1680648704457,19.94881607,1866.3,1866.2,4.49960321]
[1680648705301,19.94881607,1866.3,1866.2,1.73358103]
[1680648705507,19.94881607,1866.3,1866.2,0.72339]
[1680648716865,19.93719717,1866.3,1866.2,0.72339]
[1680648717571,19.94619717,1866.3,1866.2,0.72339]
[1680648717771,19.89619717,1866.3,1866.2,0.72339]
[1680648733814,19.88719717,1866.3,1866.2,0.72067828]
[1680648738344,19.89619717,1866.3,1866.2,0.72067828]
[1680648738635,19.88719717,1866.3,1866.2,0.72067828]
[1680648751698,19.89019717,1866.3,1866.2,0.72067828]
[1680648751946,19.88719717,1866.3,1866.2,0.72067828]
[1680648752441,19.88719717,1866.3,1866.2,0.75767828]
[1680648755874,19.88333961,1866.3,1866.2,0.75767828]
[1680648765355,21.87257357,1866.3,1866.2,0.75767828]
[1680648766160,22.52057357,1866.3,1866.2,0.27813]
[1680648767365,23.16657357,1866.3,1866.2,0.27813]
[1680648767581,23.16657357,1866.3,1866.2,0.037]
[1680648768704,23.16657357,1866.3,1866.2,0.27813]
[1680648769965,23.16657357,1866.3,1866.2,0.76039]
[1680648772115,22.51857357,1866.3,1866.2,0.76039]
[1680648776419,20.52933961,1866.3,1866.2,0.76039]
[1680648777421,20.53833961,1866.3,1866.2,0.76039]
[1680648778005,20.52933961,1866.3,1866.2,0.76039]
[1680648778825,19.88333961,1866.3,1866.2,0.76039]
[1680648779123,19.88333961,1866.3,1866.2,0.78234697]
[1680648779286,19.88333961,1866.3,1866.2,0.95703467]
[1680648779478,19.8809983,1866.3,1866.2,0.95703467]
[1680648779874,19.8899983,1866.3,1866.2,0.95703467]
[1680648780197,19.8809983,1866.3,1866.2,0.95703467]
[1680648787610,19.8899983,1866.3,1866.2,0.95703467]
[1680648788534,19.8809983,1866.3,1866.2,0.95703467]
[1680648795706,19.8809983,1866.3,1866.2,3.68605685]
[1680648797021,19.8809983,1866.3,1866.2,9.31205685]
[1680648797350,19.8809983,1866.3,1866.2,9.31805685]
[1680648797922,19.8809983,1866.3,1866.2,3.69205685]
[1680648798530,19.8809983,1866.3,1866.2,3.67009988]
[1680648798730,19.8809983,1866.3,1866.2,3.49541218]
[1680648799221,19.8809983,1866.3,1866.2,0.72939]
[1680648799423,19.8809983,1866.3,1866.2,0.72339]
[1680648799606,19.87844715,1866.3,1866.2,0.24113]
[1680648800754,19.88744715,1866.3,1866.2,0.24113]
[1680648801050,19.88744715,1866.3,1866.2,0.72339]
[1680648801659,19.87844715,1866.3,1866.2,0.72339]
[1680648804861,22.57999187,1866.3,1866.0,0.006]
[1680648805015,0.648,1866.2,1866.0,0.24114]
[1680648814477,0.648,1866.2,1866.0,0.72345]
[1680648820630,0.64420939,1866.2,1866.0,0.72345]
[1680648822790,25.13684715,1866.3,1866.0,0.72345]
[1680648822984,27.65143187,1866.3,1866.0,0.72345]
[1680648824817,27.66043187,1866.3,1866.0,0.72345]
[1680648825447,27.65143187,1866.3,1866.0,0.72345]
[1680648828165,25.13684715,1866.3,1866.0,0.72345]
[1680648828531,25.13684715,1866.3,1866.0,0.24114]
[1680648830752,25.14584715,1866.3,1866.0,0.24114]
[1680648830911,25.13684715,1866.3,1866.0,0.24114]
[1680648832529,25.14584715,1866.3,1866.0,0.24114]
[1680648832730,0.648,1866.1,1866.0,0.24114]
[1680648837775,0.648,1866.1,1866.0,0.23731475]
[1680648841510,25.14584715,1866.3,1866.0,0.23731475]
[1680648845675,24.49784715,1866.3,1866.0,0.23731475]
[1680648849021,24.49784715,1866.3,1866.0,0.25931475]
[1680648849628,24.49784715,1866.3,1866.0,0.74162475]
[1680648852077,25.14584715,1866.3,1866.0,0.74162475]
[1680648854977,20.53544715,1866.3,1866.0,0.74162475]
[1680648856592,22.65379187,1866.3,1866.0,0.022]
[1680648856789,0.648,1866.2,1866.0,0.022]
[1680648857038,0.648,1866.1,1866.0,0.022]
[1680648862290,0.64533752,1866.1,1866.0,0.022]
[1680648862600,0.77467127,1866.1,1866.0,0.022]
[1680648863625,1.04260127,1866.1,1866.0,0.022]
[1680648863830,1.04260127,1866.1,1865.5,0.28825192]
[1680648863999,0.39726375,1866.1,1866.0,0.02]
[1680648864204,1.04526375,1866.1,1866.0,0.02]
[1680648864928,1.69326375,1866.1,1866.0,0.02]
[1680648865089,2.22913375,1866.1,1866.0,0.02]
[1680648865504,1.69326375,1866.1,1866.0,0.02]
[1680648869424,1.69326375,1866.1,1865.5,0.04703192]
[1680648869425,4.99515593,1866.1,1865.5,0.04703192]
[1680648869638,0.648,1865.8,1865.5,0.04703192]
[1680648870692,0.648,1865.8,1865.5,0.40669672]
[1680648872131,0.644,1865.7,1865.5,0.40669672]
[1680648873169,1.296,1865.6,1865.5,0.40669672]
[1680648874488,1.296,1865.6,1865.5,0.59669672]
[1680648874716,1.90292,1865.6,1865.5,0.59669672]
[1680648875032,11.85695218,1865.6,1865.5,0.59669672]
[1680648875202,15.08995218,1865.6,1865.5,0.59669672]
[1680648875590,15.08995218,1865.6,1865.5,0.23703192]
[1680648876540,15.08995218,1865.6,1865.5,0.04703192]
[1680648877247,9.46395218,1865.6,1865.5,0.04703192]
[1680648877548,15.08995218,1865.6,1865.5,0.04703192]
[1680648877758,14.82194218,1865.6,1865.5,0.04703192]
[1680648878113,15.08995218,1865.6,1865.5,0.04703192]
[1680648878314,4.25792,1865.6,1865.5,0.04703192]
[1680648878645,4.52293,1865.6,1865.5,0.04703192]
[1680648881245,11.12542678,1865.6,1865.5,0.04703192]
[1680648881446,11.12842678,1865.6,1865.5,0.04703192]
[1680648882256,11.12842678,1865.6,1865.5,0.27603192]
[1680648883188,6.60549678,1865.6,1865.5,0.27603192]
[1680648883663,6.60549678,1865.6,1865.5,0.87691672]
[1680648883844,0.003,1865.6,1865.5,0.87691672]
[1680648884051,15.99011559,1866.0,1865.5,0.87691672]
[1680648884361,1.59901156,1865.9,1865.5,0.87691672]
[1680648884577,18.75613777,1866.0,1865.5,0.87691672]
[1680648885367,18.75613777,1866.0,1865.5,1.35935672]
[1680648886683,18.75613777,1866.0,1865.5,2.32423672]
[1680648886841,18.25662218,1866.0,1865.5,2.32423672]
[1680648887655,10.5079,1866.0,1865.5,2.32423672]
[1680648887855,0.657,1866.0,1865.7,1.68834]
[1680648888245,32.93,1866.1,1865.7,1.68834]
[1680648888246,0.012,1866.1,1865.7,1.68834]
[1680648888395,10.8264,1866.2,1866.1,0.00247889]
[1680648888396,0.003,1866.2,1866.1,0.00247889]
[1680648888601,19.88744715,1866.3,1866.2,1.68791]
[1680648889154,19.88744715,1866.3,1866.2,1.90491]
[1680648893487,19.8752939,1866.3,1866.2,1.90491]
[1680648904689,19.8752939,1866.3,1866.2,0.72339]
[1680648906230,19.8842939,1866.3,1866.2,0.72339]
[1680648906539,19.8752939,1866.3,1866.2,0.72339]
[1680648906683,22.5752939,1866.3,1866.2,0.72339]
[1680648906889,24.56372329,1866.3,1866.2,0.72339]
[1680648907926,24.56372329,1866.3,1866.2,0.24113]
[1680648909440,28.70874547,1866.3,1866.1,0.00247889]
[1680648909644,3.05823006,1866.2,1866.1,0.00247889]
[1680648916036,3.59880383,1866.2,1866.1,0.00247889]
[1680648921647,1.68957377,1866.2,1866.1,0.24361889]
[1680648921848,0.54057377,1866.2,1866.1,0.72589889]
[1680648922149,22.5752939,1866.3,1866.1,0.72589889]
[1680648923646,22.5752939,1866.3,1866.1,0.89495078]
[1680648927257,22.5842939,1866.3,1866.1,0.89495078]
[1680648927794,22.5752939,1866.3,1866.1,0.89495078]
[1680648934356,22.5842939,1866.3,1866.1,0.89495078]
[1680648935063,22.5752939,1866.3,1866.1,0.89495078]
[1680648935263,22.5752939,1866.3,1866.2,0.81288508]
[1680648936715,22.5752939,1866.3,1866.2,4.72390726]
[1680648936998,22.5752939,1866.3,1866.2,4.72990726]
[1680648937711,22.5752939,1866.3,1866.2,3.58490726]
[1680648942121,22.5752939,1866.3,1866.2,3.60686423]
[1680648944381,22.57323929,1866.3,1866.2,3.60486423]
[1680648944593,22.57323929,1866.3,1866.2,3.60286423]
[1680648945328,22.58223929,1866.3,1866.2,3.60086423]
[1680648945681,22.57323929,1866.3,1866.2,3.60086423]
[1680648946093,22.57323929,1866.3,1866.2,3.60286423]
[1680648946703,22.57323929,1866.3,1866.2,3.60086423]
[1680648948134,22.57323929,1866.3,1866.2,3.60286423]
[1680648948723,22.57323929,1866.3,1866.2,3.60086423]
[1680648950120,22.58223929,1866.3,1866.2,3.60086423]
[1680648950431,22.57323929,1866.3,1866.2,3.60086423]
[1680648950831,22.57323929,1866.3,1866.2,3.60286423]
[1680648955646,22.57323929,1866.3,1866.2,3.60086423]
[1680648957694,22.57323929,1866.3,1866.2,3.60286423]
[1680648960102,22.57323929,1866.3,1866.2,3.60086423]
[1680648962007,22.57323929,1866.3,1866.2,3.60286423]
[1680648963217,22.57323929,1866.3,1866.2,3.60086423]
[1680648965887,22.57122806,1866.3,1866.2,3.60086423]
[1680648966421,22.57122806,1866.3,1866.2,3.60286423]
[1680648967740,22.57122806,1866.3,1866.2,3.60086423]
[1680648969310,22.57122806,1866.3,1866.2,0.72339]
[1680648977380,22.58022806,1866.3,1866.2,0.72339]
[1680648977556,22.57122806,1866.3,1866.2,0.72339]
[1680648981986,22.58022806,1866.3,1866.2,0.72339]
[1680648982743,22.57722806,1866.3,1866.2,0.72339]
[1680648982943,22.57122806,1866.3,1866.2,0.72339]
[1680648989393,22.57122806,1866.3,1866.2,1.133919]
[1680648990275,22.56814767,1866.3,1866.2,1.133919]
[1680648992395,22.57714767,1866.3,1866.2,1.133919]
[1680648992583,22.56814767,1866.3,1866.2,1.133919]
[1680649000940,22.57714767,1866.3,1866.2,1.133919]
[1680649001531,22.56814767,1866.3,1866.2,1.133919]
[1680649003951,22.56814767,1866.3,1866.2,0.72339]
[1680649004845,23.21614767,1866.3,1866.2,0.72339]
[1680649005949,23.21614767,1866.3,1866.1,0.96453]
[1680649006109,23.21614767,1866.3,1866.2,0.24113]
[1680649006299,23.21614767,1866.3,1866.2,0.72339]
[1680649007034,25.60316244,1866.3,1866.2,0.72339]
[1680649009522,25.61216244,1866.3,1866.2,0.72339]
[1680649011646,25.60316244,1866.3,1866.2,0.72339]
[1680649012067,25.61216244,1866.3,1866.2,0.72339]
[1680649012932,25.60316244,1866.3,1866.2,0.72339]
[1680649013255,25.61216244,1866.3,1866.2,0.78239]
[1680649014217,25.60616244,1866.3,1866.2,0.78239]
[1680649014420,25.60316244,1866.3,1866.2,0.78239]
[1680649015473,25.61216244,1866.3,1866.2,0.78239]
[1680649016637,23.21614767,1866.3,1866.2,0.78239]
[1680649017064,23.22514767,1866.3,1866.2,0.78239]
[1680649018344,22.57714767,1866.3,1866.2,0.78239]
[1680649028318,22.57714767,1866.3,1866.2,3.54841218]
[1680649030227,22.56544959,1866.3,1866.2,3.54841218]
[1680649031731,22.56544959,1866.3,1866.2,9.6265064]
[1680649031928,22.56544959,1866.3,1866.2,12.6325064]
[1680649035745,22.56544959,1866.3,1866.2,13.16566271]
[1680649036054,12.56544959,1866.3,1866.2,13.16566271]
[1680649036350,12.56544959,1866.3,1866.2,7.0065064]
[1680649041929,12.56544959,1866.3,1866.2,12.6325064]
[1680649042123,12.56544959,1866.3,1866.2,12.8625064]
[1680649042859,12.57444959,1866.3,1866.2,12.8565064]
[1680649043147,12.56544959,1866.3,1866.2,12.8625064]
[1680649046450,12.56544959,1866.3,1866.2,7.0065064]
[1680649046652,12.56544959,1866.3,1866.2,6.55441218]
[1680649053723,12.56156364,1866.3,1866.2,6.55441218]
[1680649053924,12.56356364,1866.3,1866.2,6.55641218]
[1680649060679,12.57256364,1866.3,1866.2,6.55041218]
[1680649064364,12.57256364,1866.3,1866.2,7.30470221]
[1680649078239,12.57256364,1866.3,1866.2,6.55041218]
[1680649084038,12.56034471,1866.3,1866.2,6.55641218]
[1680649086351,9.86444959,1866.3,1866.2,6.55641218]
[1680649087445,9.86744959,1866.3,1866.2,6.55241218]
[1680649087635,9.87344959,1866.3,1866.2,6.55041218]
[1680649087820,9.86444959,1866.3,1866.2,6.55641218]
[1680649090139,9.86444959,1866.3,1866.2,3.55641218]
[1680649090451,10.51244959,1866.3,1866.2,3.54841218]
[1680649090751,13.21244959,1866.3,1866.2,0.78239]
[1680649095569,13.21244959,1866.3,1866.2,0.30013]
[1680649095570,14.59939455,1866.3,1866.2,0.30013]
[1680649097746,14.60839455,1866.3,1866.2,0.30013]
[1680649098147,14.60839455,1866.3,1866.2,0.059]
[1680649098348,14.60839455,1866.3,1866.2,0.30013]
[1680649104841,14.60529556,1866.3,1866.2,0.30013]
[1680649105051,14.59629556,1866.3,1866.2,0.30013]
[1680649106587,14.59629556,1866.3,1866.2,0.24113]
[1680649110760,14.60229556,1866.3,1866.2,0.24113]
[1680649110950,14.59629556,1866.3,1866.2,0.24113]
[1680649112669,14.59629556,1866.3,1866.2,0.72339]
[1680649112863,13.2093506,1866.3,1866.2,0.72339]
[1680649113249,12.5613506,1866.3,1866.2,3.51136915]
[1680649113462,12.5613506,1866.3,1866.2,3.51336915]
[1680649114042,12.5613506,1866.3,1866.2,3.51736915]
[1680649116158,12.5673506,1866.3,1866.2,3.51136915]
[1680649116459,12.5703506,1866.3,1866.2,3.51136915]
[1680649116752,12.5613506,1866.3,1866.2,4.20689507]
[1680649119026,12.5673506,1866.3,1866.2,4.20289507]
[1680649119228,12.5703506,1866.3,1866.2,4.20089507]
[1680649119415,12.5613506,1866.3,1866.2,4.20689507]
[1680649126466,12.5703506,1866.3,1866.2,4.20089507]
[1680649127178,12.5613506,1866.3,1866.2,4.20689507]
[1680649127680,12.55920636,1866.3,1866.2,4.20489507]
[1680649128180,12.55920636,1866.3,1866.2,3.51536915]
[1680649128344,12.55920636,1866.3,1866.2,3.51136915]
[1680649133511,12.56820636,1866.3,1866.2,3.50777673]
[1680649149781,12.56820636,1866.3,1866.2,3.48581976]
[1680649154594,12.55712832,1866.3,1866.2,3.48581976]
[1680649160252,12.55712832,1866.3,1866.2,0.71979758]
[1680649160454,13.87854115,1866.3,1866.2,0.71979758]
[1680649160749,13.87854115,1866.3,1866.2,0.66979758]
[1680649165287,13.88754115,1866.3,1866.2,0.66979758]
[1680649166012,13.87854115,1866.3,1866.2,0.66979758]
[1680649172236,14.52654115,1866.3,1866.2,0.66979758]
[1680649173037,14.52654115,1866.3,1866.1,0.24114]
[1680649173240,12.55712832,1866.3,1866.2,0.24113]
[1680649173535,13.19912832,1866.3,1866.2,0.24113]
[1680649174096,13.20812832,1866.3,1866.2,0.24113]
[1680649184827,13.20551056,1866.3,1866.2,0.24113]
[1680649185132,13.19651056,1866.3,1866.2,0.24113]
[1680649186151,14.58996162,1866.3,1866.2,0.24113]
[1680649187089,14.58096162,1866.3,1866.2,0.24113]
[1680649189150,14.58996162,1866.3,1866.2,0.24113]
[1680649189783,14.58096162,1866.3,1866.2,0.24113]
[1680649192290,12.55451056,1866.3,1866.2,0.72339]
[1680649194100,12.56351056,1866.3,1866.2,0.72339]
[1680649194474,12.55451056,1866.3,1866.2,0.72339]
[1680649197407,12.56351056,1866.3,1866.2,0.72339]
[1680649197966,12.55451056,1866.3,1866.2,0.72339]
[1680649198906,12.55451056,1866.3,1866.2,0.892186]
[1680649199110,12.55451056,1866.3,1866.2,3.65820818]
[1680649199312,12.55451056,1866.3,1866.2,3.66020818]
[1680649199766,12.55451056,1866.3,1866.2,3.66220818]
[1680649200411,12.55451056,1866.3,1866.2,3.66420818]
[1680649202595,12.55451056,1866.3,1866.2,3.68616515]
[1680649205343,12.54824293,1866.3,1866.2,3.68216515]
[1680649205743,12.54824293,1866.3,1866.2,6.68616515]
[1680649205899,12.54824293,1866.3,1866.2,7.56116515]
[1680649207439,12.54824293,1866.3,1866.2,16.05733113]
[1680649207590,9.41624293,1866.3,1866.2,16.05733113]
[1680649207790,9.28124293,1866.3,1866.2,16.05733113]
[1680649208003,7.58827207,1866.3,1866.2,14.09854977]
[1680649208207,2.53571881,1866.3,1866.2,16.05733113]
[1680649208433,0.009,1866.8,1866.4,14.54664]
[1680649208653,0.11000001,1867.1,1866.6,4.09815]
[1680649208857,0.11900001,1867.1,1866.8,1.68735]
[1680649209011,0.11900001,1867.1,1867.0,1.68718]
[1680649209525,0.11000001,1867.1,1867.0,4.45320218]
[1680649210608,0.11000001,1867.1,1867.0,14.36720218]
[1680649210811,0.11000001,1867.1,1867.0,14.59920218]
[1680649211223,2.62448706,1868.2,1867.1,2.31]
[1680649211427,0.11000001,1868.2,1868.1,3.41402218]
[1680649211782,0.11000001,1868.2,1868.1,13.78307218]
[1680649212059,0.11000001,1868.2,1868.1,11.41700683]
[1680649212425,0.009,1869.0,1868.4,1.68591]
[1680649212610,0.11200001,1869.1,1868.5,3.81061318]
[1680649212611,0.11000001,1869.1,1868.5,3.81061318]
[1680649212812,0.11000001,1869.1,1868.6,1.70763878]
[1680649213059,0.11000001,1869.1,1868.7,2.76602218]
[1680649213215,0.11000001,1869.1,1868.8,0.72238]
[1680649213419,0.11000001,1869.1,1868.8,3.48840218]
[1680649214862,0.11000001,1869.1,1868.8,4.11284216]
[1680649215069,0.11000001,1869.1,1868.8,3.48840218]
[1680649215269,0.11000001,1869.1,1868.8,0.72238]
[1680649216891,2.7,1869.0,1868.8,0.72238]
[1680649217560,2.7,1869.0,1868.8,3.48840218]
[1680649218880,0.11900001,1869.1,1868.8,3.48840218]
[1680649219081,0.11000001,1869.1,1868.8,3.48840218]
[1680649220887,1.25600001,1869.1,1868.8,0.24079]
[1680649222158,1.26500001,1869.1,1868.8,0.24079]
[1680649225355,1.25600001,1869.1,1868.8,0.24079]
[1680649225555,1.26500001,1869.1,1868.8,0.24079]